[Event "Mentese WGM 2019"]
[Site "Mentese"]
[Date "2019.06.24"]
[Round "4.3"]
[White "Atalik, Ekaterina"]
[Black "Novikova, Margarita"]
[Result "1-0"]
[ECO "D35"]
[WhiteElo "2452"]
[BlackElo "2020"]
[Annotator "ChessBase"]
[PlyCount "79"]
[EventDate "2019.06.24"]
[EventType "schev"]
[EventCountry "TUR"]
[SourceTitle "playchess.com"]
[Source "ChessBase"]
[SourceQuality "1"]
[TimeControl "5400+30"]

1. d4 {[%emt 0:00:30]} d5 {[%emt 0:00:30]} 2. c4 {[%emt 0:00:00]} e6 {[%emt 0:00:00]} 3. Nc3 {[%emt 0:00:00]} Nf6 {[%emt 0:00:00]} 4. cxd5 {[%emt 0:00:30]} exd5 {[%emt 0:00:00]} 5. Bg5 {[%emt 0:00:30]} Be7 {[%emt 0:00:00]} 6. e3 {[%emt 0:00:00]} O-O {[%emt 0:01:30]} 7. Bd3 {[%emt 0:00:00]} c6 {[%emt 0:02:30]} 8. h3 {[%emt 0:03:30]} Nbd7 {[%emt 0:05:30]} 9. Qc2 {[%emt 0:02:30]} Re8 {[%emt 0:01:30]} 10. Bf4 {[%emt 0:01:30]} c5 {[%emt 0:07:30]} 11. Nf3 {[%emt 0:01:30]} c4 {[%emt 0:08:30]} 12. Be2 {[%emt 0:00:30]} Nf8 {[%emt 0:01:30]} 13. O-O {[%emt 0:04:30]} Ng6 {[%emt 0:04:30]} 14. Be5 {[%emt 0:04:30]} a6 {[%emt 0:03:30]} 15. a4 {[%emt 0:00:30]} Be6 {[%emt 0:08:30]} 16. Ng5 {[%emt 0:02:30]} Qd7 {[%emt 0:03:30]} 17. Nxe6 {[%emt 0:01:30]} fxe6 {[%emt 0:07:30]} 18. f4 {[%emt 0:00:30]} b5 {[%emt 0:01:30]} 19. Bxf6 {[%emt 0:05:30]} Bxf6 {[%emt 0:01:30]} 20. axb5 {[%emt 0:00:30]} axb5 {[%emt 0:00:30]} 21. Bh5 {[%emt 0:01:30]} b4 {[%emt 0:01:30]} 22. Ne2 {[%emt 0:01:30]} b3 {[%emt 0:05:30]} 23. Qb1 {[%emt 0:00:30]} Rxa1 {[%emt 0:00:30]} 24. Qxa1 {[%emt 0:00:30]} Qb7 {[%emt 0:06:30]} 25. Qb1 {[%emt 0:00:30]} Ra8 {[%emt 0:07:30]} 26. Bxg6 {[%emt 0:01:30]} hxg6 {[%emt 0:00:30]} 27. Qxg6 {[%emt 0:00:30]} Qf7 {[%emt 0:02:45]} 28. Qg4 {[%emt 0:05:30]} Ra2 {[%emt 0:00:53]} 29. Rb1 {[%emt 0:00:00]} Ra6 {[%emt 0:05:45]} 30. Ng3 {[%emt 0:04:00]} Kh7 {[%emt 0:02:08]} 31. f5 {[%emt 0:02:30]} e5 {[%emt 0:01:58]} 32. Kh2 {[%emt 0:06:30]} e4 {[%emt 0:03:08]} 33. Ne2 {[%emt 0:08:30]} Bd8 {[%emt 0:01:17]} 34. Kg1 {[%emt 0:02:30]} Kg8 {[%emt 0:04:07]} 35. Nf4 {[%emt 0:01:30]} Bf6 {[%emt 0:01:06]} 36. Ng6 {[%emt 0:03:30]} Bd8 {[%emt 0:01:55]} 37. Qh5 {[%emt 0:00:30]} Qe8 {[%emt 0:00:37]} 38. Qh8+ {[%emt 0:01:30]} Kf7 {[%emt 0:00:01]} 39. Ne5+ {[%emt 0:00:00]} Ke7 {[%emt 0:00:14]} 40. Qxg7+ {[%emt 0:00:00]} 1-0

[Event "Mentese WGM 2019"]
[Site "Mentese"]
[Date "2019.06.24"]
[Round "4.4"]
[White "Doluhanova, Evgeniya"]
[Black "Anacoglu, Cisel"]
[Result "1-0"]
[ECO "A06"]
[WhiteElo "2319"]
[BlackElo "1973"]
[Annotator "NA"]
[PlyCount "113"]
[EventDate "2019.06.24"]
[EventType "schev"]
[EventCountry "TUR"]
[SourceTitle "playchess.com"]
[Source "ChessBase"]
[SourceQuality "1"]
[TimeControl "5400+30"]

1. Nf3 {[%emt 0:00:30]} d5 {[%emt 0:00:30]} 2. b3 {[%emt 0:00:30]} Nf6 {[%emt 0:00:00]} 3. Bb2 {[%emt 0:00:00]} c5 {[%emt 0:03:00]} 4. e3 {[%emt 0:00:00]} Nc6 {[%emt 0:00:00]} 5. Bb5 {[%emt 0:00:00]} Bf5 {[%emt 0:01:00]} 6. O-O {[%emt 0:00:00]} e6 {[%emt 0:00:30]} 7. Ne5 {[%emt 0:00:30]} Rc8 {[%emt 0:00:30]} 8. d3 {[%emt 0:03:30]} Bd6 {[%emt 0:00:30]} 9. Nd2 {[%emt 0:01:30]} O-O {[%emt 0:00:30]} 10. Bxc6 {[%emt 0:00:00]} bxc6 {[%emt 0:00:30]} 11. Qe2 {[%emt 0:03:00]} Nd7 {[%emt 0:07:30]} 12. Nxd7 {[%emt 0:04:30]} Qxd7 {[%emt 0:00:00]} 13. e4 {[%emt 0:00:30]} Bg6 {[%emt 0:00:00]} 14. f4 {[%emt 0:00:00]} f6 {[%emt 0:03:30]} 15. Rae1 {[%emt 0:04:00]} Rce8 {[%emt 0:01:30]} 16. Qf2 {[%emt 0:04:30]} Qc7 {[%emt 0:08:30]} 17. Nb1 {[%emt 0:13:30]} f5 {[%emt 0:09:30]} 18. e5 {[%emt 0:01:30]} Be7 {[%emt 0:00:30]} 19. Nc3 {[%emt 0:01:30]} Qa5 {[%emt 0:00:30]} 20. Na4 {[%emt 0:00:30]} c4 {[%emt 0:03:30]} 21. Bc3 {[%emt 0:01:30]} Qa6 {[%emt 0:01:30]} 22. dxc4 {[%emt 0:01:30]} dxc4 {[%emt 0:00:00]} 23. Qe2 {[%emt 0:00:30]} Rd8 {[%emt 0:04:00]} 24. Rd1 {[%emt 0:01:30]} Qb5 {[%emt 0:01:30]} 25. Qe3 {[%emt 0:09:30]} cxb3 {[%emt 0:03:30]} 26. axb3 {[%emt 0:04:30]} a6 {[%emt 0:05:30]} 27. Qa7 {[%emt 0:10:30]} Bh5 {[%emt 0:07:30]} 28. Rxd8 {[%emt 0:04:30]} Bxd8 {[%emt 0:01:30]} 29. Bd4 {[%emt 0:03:30]} Ba5 {[%emt 0:03:30]} 30. Bb6 {[%emt 0:10:03]} Bxb6+ {[%emt 0:00:30]} 31. Qxb6 {[%emt 0:00:04]} Qxb6+ {[%emt 0:00:30]} 32. Nxb6 {[%emt 0:00:04]} Rd8 {[%emt 0:04:30]} 33. c4 {[%emt 0:10:06]} Bd1 {[%emt 0:13:40]} 34. b4 {[%emt 0:01:31]} Rd4 {[%emt 0:00:24]} 35. g3 {[%emt 0:00:28]} Bb3 {[%emt 0:01:15]} 36. Rc1 {[%emt 0:00:22]} Kf8 {[%emt 0:01:36]} 37. Rc3 {[%emt 0:00:33]} Ba2 {[%emt 0:01:00]} 38. Kf2 {[%emt 0:02:29]} Rd2+ {[%emt 0:00:29]} 39. Ke3 {[%emt 0:00:26]} Rb2 {[%emt 0:01:29]} 40. Kd4 {[%emt 0:00:44]} Rxb4 {[%emt 0:01:05]} 41. Kc5 {[%emt 0:00:14]} Rb2 {[%emt 0:00:36]} 42. h4 {[%emt 0:00:54]} a5 {[%emt 0:01:30]} 43. Kxc6 {[%emt 0:00:48]} Bb3 {[%emt 0:01:39]} 44. Rd3 {[%emt 0:02:28]} a4 {[%emt 0:00:49]} 45. Rd8+ {[%emt 0:00:26]} Kf7 {[%emt 0:02:04]} 46. Ra8 {[%emt 0:00:46]} Bd1 {[%emt 0:02:29]} 47. Ra7+ {[%emt 0:01:00]} Kg6 {[%emt 0:00:01]} 48. c5 {[%emt 0:01:17]} Rb3 {[%emt 0:01:14]} 49. Rxa4 {[%emt 0:00:39]} Rxg3 {[%emt 0:00:34]} 50. Rd4 {[%emt 0:00:06]} Bf3+ {[%emt 0:00:08]} 51. Kd6 {[%emt 0:00:10]} Rg4 {[%emt 0:00:57]} 52. Kxe6 {[%emt 0:00:40]} Rxh4 {[%emt 0:00:02]} 53. Nd5 {[%emt 0:00:16]} Bxd5+ {[%emt 0:00:30]} 54. Kxd5 {[%emt 0:00:21]} Rh1 {[%emt 0:00:02]} 55. c6 {[%emt 0:00:11]} Ra1 {[%emt 0:00:43]} 56. c7 {[%emt 0:00:15]} Ra8 {[%emt 0:00:05]} 57. Kc6 {[%emt 0:00:56]} 1-0

[Event "Mentese WGM 2019"]
[Site "Mentese"]
[Date "2019.06.24"]
[Round "4.5"]
[White "Khomeriki, Nino"]
[Black "Aydin, Gulenay"]
[Result "1-0"]
[ECO "E62"]
[WhiteElo "2313"]
[BlackElo "1967"]
[Annotator "NA"]
[PlyCount "57"]
[EventDate "2019.06.24"]
[EventType "schev"]
[EventCountry "TUR"]
[SourceTitle "playchess.com"]
[Source "ChessBase"]
[SourceQuality "1"]
[TimeControl "5400+30"]

1. d4 {[%emt 0:00:30]} Nf6 {[%emt 0:00:30]} 2. Nf3 {[%emt 0:00:00]} g6 {[%emt 0:00:00]} 3. c4 {[%emt 0:00:00]} Bg7 {[%emt 0:00:00]} 4. g3 {[%emt 0:00:00]} O-O {[%emt 0:00:00]} 5. Bg2 {[%emt 0:00:00]} d6 {[%emt 0:00:00]} 6. Nc3 {[%emt 0:00:30]} c6 {[%emt 0:00:30]} 7. O-O {[%emt 0:00:00]} Qa5 {[%emt 0:00:30]} 8. Nd2 {[%emt 0:00:00]} e5 {[%emt 0:04:30]} 9. d5 {[%emt 0:00:30]} cxd5 {[%emt 0:00:30]} 10. Nxd5 {[%emt 0:00:00]} Nxd5 {[%emt 0:00:30]} 11. Bxd5 {[%emt 0:00:00]} Qc7 {[%emt 0:08:30]} 12. Ne4 {[%emt 0:00:30]} Kh8 {[%emt 0:02:30]} 13. Be3 {[%emt 0:14:30]} Bf5 {[%emt 0:09:30]} 14. Nxd6 {[%emt 0:07:30]} Qxd6 {[%emt 0:02:30]} 15. Bxb7 {[%emt 0:00:00]} Qxd1 {[%emt 0:02:30]} 16. Rfxd1 {[%emt 0:00:00]} Nd7 {[%emt 0:00:00]} 17. Bxa8 {[%emt 0:00:00]} Rxa8 {[%emt 0:00:00]} 18. c5 {[%emt 0:00:00]} Rc8 {[%emt 0:00:30]} 19. b4 {[%emt 0:00:30]} Bf8 {[%emt 0:05:30]} 20. Rac1 {[%emt 0:01:30]} Nb8 {[%emt 0:04:30]} 21. b5 {[%emt 0:00:30]} a6 {[%emt 0:02:30]} 22. a4 {[%emt 0:02:30]} Be7 {[%emt 0:06:30]} 23. c6 {[%emt 0:01:30]} axb5 {[%emt 0:01:30]} 24. axb5 {[%emt 0:00:00]} Bd8 {[%emt 0:00:30]} 25. b6 {[%emt 0:06:00]} Bxb6 {[%emt 0:03:30]} 26. Bxb6 {[%emt 0:00:30]} Rxc6 {[%emt 0:00:30]} 27. Bc7 {[%emt 0:00:30]} Rxc1 {[%emt 0:00:30]} 28. Bxe5+ {[%emt 0:00:30]} Kg8 {[%emt 0:00:30]} 29. Rxc1 {[%emt 0:00:00]} 1-0

[Event "Mentese WGM 2019"]
[Site "Mentese"]
[Date "2019.06.24"]
[Round "6.1"]
[White "Atalik, Ekaterina"]
[Black "Rakhmangulova, Anastasiya"]
[Result "*"]
[ECO "D12"]
[WhiteElo "2452"]
[BlackElo "2217"]
[Annotator "RC"]
[PlyCount "129"]
[EventDate "2019.06.24"]
[EventType "schev"]
[EventCountry "TUR"]
[SourceTitle "playchess.com"]
[Source "ChessBase"]
[SourceQuality "1"]
[TimeControl "5400+30"]

1. d4 {[%emt 0:00:30]} d5 {[%emt 0:00:30]} 2. c4 {[%emt 0:00:00]} c6 {[%emt 0:00:00]} 3. Nf3 {[%emt 0:00:00]} Nf6 {[%emt 0:00:00]} 4. Nbd2 {[%emt 0:00:30]} Bf5 {[%emt 0:00:00]} 5. e3 {[%emt 0:01:30]} e6 {[%emt 0:00:00]} 6. Qb3 {[%emt 0:01:30]} Qc7 {[%emt 0:00:30]} 7. Nh4 {[%emt 0:01:30]} Be4 {[%emt 0:00:30]} 8. f3 {[%emt 0:00:30]} Bg6 {[%emt 0:00:00]} 9. g3 {[%emt 0:04:30]} Nbd7 {[%emt 0:10:00]} 10. Be2 {[%emt 0:02:30]} Bd6 {[%emt 0:12:30]} 11. Nf1 {[%emt 0:02:30]} O-O {[%emt 0:01:30]} 12. Nxg6 {[%emt 0:00:30]} hxg6 {[%emt 0:00:30]} 13. c5 {[%emt 0:01:30]} Be7 {[%emt 0:00:30]} 14. g4 {[%emt 0:02:30]} e5 {[%emt 0:01:30]} 15. h4 {[%emt 0:04:30]} b6 {[%emt 0:05:30]} 16. cxb6 {[%emt 0:01:30]} axb6 {[%emt 0:00:00]} 17. dxe5 {[%emt 0:00:30]} Qxe5 {[%emt 0:10:00]} 18. h5 {[%emt 0:07:30]} gxh5 {[%emt 0:01:30]} 19. gxh5 {[%emt 0:02:30]} d4 {[%emt 0:03:30]} 20. h6 {[%emt 0:04:30]} Nc5 {[%emt 0:17:30]} 21. Qc2 {[%emt 0:00:30]} Rfd8 {[%emt 0:00:00]} 22. exd4 {[%emt 0:01:30]} Rxd4 {[%emt 0:01:00]} 23. Be3 {[%emt 0:01:30]} Rb4 {[%emt 0:00:30]} 24. hxg7 {[%emt 0:05:30]} Rxb2 {[%emt 0:02:30]} 25. f4 {[%emt 0:01:30]} Rxc2 {[%emt 0:03:30]} 26. fxe5 {[%emt 0:00:30]} Nh7 {[%emt 0:00:30]} 27. Ng3 {[%emt 0:04:30]} Raxa2 {[%emt 0:10:44]} 28. Rxa2 {[%emt 0:01:30]} Rxa2 {[%emt 0:00:05]} 29. Nf5 {[%emt 0:03:30]} Nd3+ {[%emt 0:06:33]} 30. Bxd3 {[%emt 0:01:30]} Ra1+ {[%emt 0:00:05]} 31. Kf2 {[%emt 0:00:30]} Rxh1 {[%emt 0:00:05]} 32. Nxe7+ {[%emt 0:00:30]} Kxg7 {[%emt 0:00:03]} 33. Nxc6 {[%emt 0:02:30]} Rh2+ {[%emt 0:05:58]} 34. Kg3 {[%emt 0:01:30]} Rb2 {[%emt 0:00:12]} 35. Kf3 {[%emt 0:07:30]} Rb3 {[%emt 0:02:51]} 36. Ke4 {[%emt 0:04:30]} Nf8 {[%emt 0:00:34]} 37. Bc4 {[%emt 0:01:30]} Rc3 {[%emt 0:00:57]} 38. Bd5 {[%emt 0:00:30]} Ne6 {[%emt 0:02:04]} 39. Bxb6 {[%emt 0:02:30]} Ra3 {[%emt 0:02:30]} 40. Be3 {[%emt 0:03:30]} Ra4+ {[%emt 0:00:55]} 41. Kf5 {[%emt 0:02:30]} Ra3 {[%emt 0:00:15]} 42. Bf2 {[%emt 0:01:07]} Ra1 {[%emt 0:00:14]} 43. Bh4 {[%emt 0:03:23]} Rf1+ {[%emt 0:00:30]} 44. Kg4 {[%emt 0:00:30]} Rg1+ {[%emt 0:00:30]} 45. Kf3 {[%emt 0:00:30]} Rf1+ {[%emt 0:00:30]} 46. Ke3 {[%emt 0:01:58]} Rf5 {[%emt 0:02:41]} 47. Be7 {[%emt 0:02:16]} Rh5 {[%emt 0:00:38]} 48. Bf6+ {[%emt 0:00:35]} Kg6 {[%emt 0:00:29]} 49. Ne7+ {[%emt 0:03:54]} Kh6 {[%emt 0:00:05]} 50. Bf3 {[%emt 0:02:23]} Rh3 {[%emt 0:00:33]} 51. Kf2 {[%emt 0:01:37]} Rh2+ {[%emt 0:00:21]} 52. Kg3 {[%emt 0:00:16]} Ra2 {[%emt 0:00:16]} 53. Nf5+ {[%emt 0:00:59]} Kg6 {[%emt 0:00:53]} 54. Nd6 {[%emt 0:00:45]} Ra3 {[%emt 0:00:18]} 55. Kg4 {[%emt 0:00:30]} Nc5 {[%emt 0:00:35]} 56. Bd5 {[%emt 0:01:27]} Ra4+ {[%emt 0:00:04]} 57. Kf3 {[%emt 0:00:08]} Ra3+ {[%emt 0:01:10]} 58. Ke2 {[%emt 0:00:06]} Ra7 {[%emt 0:00:16]} 59. Nc8 {[%emt 0:01:43]} Rc7 {[%emt 0:00:56]} 60. Ne7+ {[%emt 0:00:38]} Rxe7 {[%emt 0:00:30]} 61. Bxe7 {[%emt 0:00:30]} Nd7 {[%emt 0:00:10]} 62. Be4+ {[%emt 0:00:00]} Kg7 {[%emt 0:00:56]} 63. Bd6 {[%emt 0:00:00]} Nb6 {[%emt 0:00:31]} 64. Kd3 {[%emt 0:00:47]} Nc8 {[%emt 0:00:30]} 65. Bf5 *

[Event "Mentese WGM 2019"]
[Site "Mentese"]
[Date "2019.06.24"]
[Round "6.3"]
[White "Khomeriki, Nino"]
[Black "Novikova, Margarita"]
[Result "*"]
[ECO "D55"]
[WhiteElo "2313"]
[BlackElo "2020"]
[Annotator "NA RC"]
[PlyCount "105"]
[EventDate "2019.06.24"]
[EventType "schev"]
[EventCountry "TUR"]
[SourceTitle "playchess.com"]
[Source "ChessBase"]
[SourceQuality "1"]
[TimeControl "5400+30"]

1. d4 {[%emt 0:00:30]} d5 {[%emt 0:00:00]} 2. c4 {[%emt 0:00:00]} e6 {[%emt 0:00:00]} 3. Nf3 {[%emt 0:00:00]} Nf6 {[%emt 0:00:30]} 4. Nc3 {[%emt 0:00:30]} Be7 {[%emt 0:00:00]} 5. Bg5 {[%emt 0:00:00]} O-O {[%emt 0:00:00]} 6. e3 {[%emt 0:00:00]} b6 {[%emt 0:00:30]} 7. cxd5 {[%emt 0:02:30]} Nxd5 {[%emt 0:00:30]} 8. Nxd5 {[%emt 0:00:30]} exd5 {[%emt 0:00:30]} 9. Bxe7 {[%emt 0:00:30]} Qxe7 {[%emt 0:00:00]} 10. Bd3 {[%emt 0:00:00]} Ba6 {[%emt 0:01:00]} 11. Rc1 {[%emt 0:01:00]} Qb4+ {[%emt 0:06:30]} 12. Qd2 {[%emt 0:00:30]} Qxd2+ {[%emt 0:00:30]} 13. Kxd2 {[%emt 0:00:30]} Bxd3 {[%emt 0:00:30]} 14. Kxd3 {[%emt 0:00:00]} Na6 {[%emt 0:00:00]} 15. Ke2 {[%emt 0:01:00]} c5 {[%emt 0:03:00]} 16. dxc5 {[%emt 0:02:30]} bxc5 {[%emt 0:00:30]} 17. Rhd1 {[%emt 0:00:00]} Rab8 {[%emt 0:02:30]} 18. b3 {[%emt 0:01:00]} Rfd8 {[%emt 0:08:30]} 19. Rd2 {[%emt 0:01:30]} f6 {[%emt 0:05:30]} 20. Ne1 {[%emt 0:04:30]} Rbc8 {[%emt 0:10:30]} 21. Nd3 {[%emt 0:05:30]} Rd6 {[%emt 0:07:30]} 22. Rdc2 {[%emt 0:07:30]} Rdc6 {[%emt 0:04:30]} 23. a3 {[%emt 0:00:30]} Kf7 {[%emt 0:10:30]} 24. h4 {[%emt 0:01:30]} R6c7 {[%emt 0:02:30]} 25. Nf4 {[%emt 0:07:30]} Rd7 {[%emt 0:00:30]} 26. b4 {[%emt 0:02:30]} c4 {[%emt 0:01:30]} 27. Rd1 {[%emt 0:02:30]} Rcd8 {[%emt 0:01:30]} 28. g4 {[%emt 0:00:30]} Nc7 {[%emt 0:05:30]} 29. e4 {[%emt 0:04:30]} Re7 {[%emt 0:07:30]} 30. f3 {[%emt 0:03:30]} g5 {[%emt 0:02:30]} 31. hxg5 {[%emt 0:00:00]} fxg5 {[%emt 0:00:30]} 32. Nh3 {[%emt 0:01:00]} Ne6 {[%emt 0:03:45]} 33. Kf2 {[%emt 0:00:30]} Red7 {[%emt 0:03:27]} 34. exd5 {[%emt 0:03:30]} Rxd5 {[%emt 0:00:00]} 35. Rxd5 {[%emt 0:00:30]} Rxd5 {[%emt 0:00:01]} 36. Rxc4 {[%emt 0:00:00]} Rd3 {[%emt 0:04:10]} 37. a4 {[%emt 0:00:00]} h6 {[%emt 0:00:45]} 38. Ng1 {[%emt 0:02:30]} Ra3 {[%emt 0:01:22]} 39. a5 {[%emt 0:00:30]} Rb3 {[%emt 0:01:45]} 40. Ne2 {[%emt 0:00:30]} Kf6 {[%emt 0:04:31]} 41. Nc3 {[%emt 0:01:30]} a6 {[%emt 0:03:24]} 42. Ke3 {[%emt 0:01:30]} Ke5 {[%emt 0:00:20]} 43. Re4+ {[%emt 0:00:30]} Kd6 {[%emt 0:00:23]} 44. Kd3 {[%emt 0:00:30]} Nc7 {[%emt 0:00:46]} 45. Kc4 {[%emt 0:00:30]} Rb2 {[%emt 0:00:01]} 46. Rd4+ {[%emt 0:00:30]} Kc6 {[%emt 0:00:07]} 47. Rd8 {[%emt 0:00:30]} Rc2 {[%emt 0:00:57]} 48. Kd3 {[%emt 0:01:30]} Rb2 {[%emt 0:01:11]} 49. Rb8 {[%emt 0:00:30]} Kd7 {[%emt 0:00:31]} 50. Na4 {[%emt 0:00:30]} Rb3+ {[%emt 0:00:34]} 51. Ke4 {[%emt 0:00:30]} Rb1 {[%emt 0:01:04]} 52. Nc5+ {[%emt 0:00:30]} Kc6 {[%emt 0:00:14]} 53. Rb6# *

[Event "Mentese WGM 2019"]
[Site "Mentese"]
[Date "2019.06.24"]
[Round "6.5"]
[White "Arda, Cagil Irmak"]
[Black "Aydin, Gulenay"]
[Result "*"]
[ECO "B38"]
[WhiteElo "2069"]
[BlackElo "1967"]
[Annotator "NA RC"]
[PlyCount "91"]
[EventDate "2019.06.24"]
[EventType "schev"]
[EventCountry "TUR"]
[SourceTitle "playchess.com"]
[Source "ChessBase"]
[SourceQuality "1"]
[TimeControl "5400+30"]

1. e4 {[%emt 0:00:30]} c5 {[%emt 0:00:30]} 2. Nf3 {[%emt 0:00:00]} d6 {[%emt 0:00:00]} 3. d4 {[%emt 0:00:00]} cxd4 {[%emt 0:00:00]} 4. Nxd4 {[%emt 0:00:30]} Nf6 {[%emt 0:00:00]} 5. f3 {[%emt 0:00:00]} g6 {[%emt 0:00:00]} 6. c4 {[%emt 0:00:00]} Bg7 {[%emt 0:00:30]} 7. Nc3 {[%emt 0:00:00]} O-O {[%emt 0:00:30]} 8. Be3 {[%emt 0:00:00]} Nc6 {[%emt 0:00:30]} 9. Qd2 {[%emt 0:00:30]} Bd7 {[%emt 0:01:30]} 10. Be2 {[%emt 0:00:00]} a6 {[%emt 0:00:30]} 11. O-O {[%emt 0:00:00]} Qa5 {[%emt 0:04:30]} 12. Nxc6 {[%emt 0:16:30]} bxc6 {[%emt 0:07:30]} 13. c5 {[%emt 0:04:30]} Rfd8 {[%emt 0:19:30]} 14. cxd6 {[%emt 0:04:30]} exd6 {[%emt 0:13:30]} 15. Qxd6 {[%emt 0:02:30]} Be8 {[%emt 0:06:30]} 16. Qg3 {[%emt 0:03:30]} Rab8 {[%emt 0:03:30]} 17. Rab1 {[%emt 0:07:30]} Nd7 {[%emt 0:07:30]} 18. Qg5 {[%emt 0:16:30]} Ne5 {[%emt 0:11:30]} 19. b4 {[%emt 0:10:30]} Qc7 {[%emt 0:02:49]} 20. Rfc1 {[%emt 0:09:30]} h6 {[%emt 0:02:08]} 21. Qg3 {[%emt 0:02:30]} Qe7 {[%emt 0:00:40]} 22. Bc5 {[%emt 0:00:30]} Qe6 {[%emt 0:01:24]} 23. f4 {[%emt 0:13:05]} Nd7 {[%emt 0:01:07]} 24. Bf2 {[%emt 0:01:37]} a5 {[%emt 0:06:34]} 25. bxa5 {[%emt 0:01:55]} Rxb1 {[%emt 0:00:56]} 26. Rxb1 {[%emt 0:00:21]} Ra8 {[%emt 0:05:08]} 27. a6 {[%emt 0:00:31]} Bxc3 {[%emt 0:01:55]} 28. Qxc3 {[%emt 0:00:04]} Qxa2 {[%emt 0:00:03]} 29. Re1 {[%emt 0:01:46]} Nb8 {[%emt 0:01:07]} 30. a7 {[%emt 0:01:57]} Rxa7 {[%emt 0:00:30]} 31. Bxa7 {[%emt 0:00:30]} Qxa7+ {[%emt 0:00:30]} 32. Kh1 {[%emt 0:00:30]} Nd7 {[%emt 0:00:30]} 33. Bf3 {[%emt 0:00:30]} Nf8 {[%emt 0:00:30]} 34. Ra1 {[%emt 0:00:30]} Qc7 {[%emt 0:00:30]} 35. Ra8 {[%emt 0:00:30]} Qb7 {[%emt 0:00:30]} 36. Qa1 {[%emt 0:00:30]} Bd7 {[%emt 0:00:00]} 37. h3 {[%emt 0:01:23]} c5 {[%emt 0:00:00]} 38. Qa5 {[%emt 0:01:30]} Bc6 {[%emt 0:00:34]} 39. Rd8 {[%emt 0:00:38]} Qe7 {[%emt 0:02:10]} 40. Rc8 {[%emt 0:00:20]} Qd7 {[%emt 0:01:23]} 41. Qc7 {[%emt 0:00:16]} Qxc7 {[%emt 0:00:50]} 42. Rxc7 {[%emt 0:00:03]} Bd7 {[%emt 0:00:31]} 43. Rxc5 {[%emt 0:00:09]} Ne6 {[%emt 0:00:03]} 44. Rd5 {[%emt 0:00:35]} Bc6 {[%emt 0:00:00]} 45. Rd6 {[%emt 0:00:10]} Bb7 {[%emt 0:00:03]} 46. Rb6 *

[Event "Mentese WGM 2019"]
[Site "Mentese"]
[Date "2019.06.24"]
[Round "7.4"]
[White "Anacoglu, Cisel"]
[Black "Arda, Cagil Irmak"]
[Result "1/2-1/2"]
[ECO "B51"]
[WhiteElo "1973"]
[BlackElo "2069"]
[Annotator "NA RC"]
[PlyCount "102"]
[EventDate "2019.06.24"]
[EventType "schev"]
[EventCountry "TUR"]
[SourceTitle "playchess.com"]
[Source "ChessBase"]
[SourceQuality "1"]
[TimeControl "5400+30"]

1. e4 {[%emt 0:00:30]} c5 {[%emt 0:00:30]} 2. Nf3 {[%emt 0:00:00]} d6 {[%emt 0:00:00]} 3. Bb5+ {[%emt 0:00:00]} Nd7 {[%emt 0:00:00]} 4. O-O {[%emt 0:00:00]} Ngf6 {[%emt 0:00:30]} 5. Re1 {[%emt 0:00:00]} a6 {[%emt 0:00:00]} 6. Bd3 {[%emt 0:00:30]} e6 {[%emt 0:00:00]} 7. c3 {[%emt 0:00:00]} b6 {[%emt 0:00:30]} 8. Bc2 {[%emt 0:00:00]} c4 {[%emt 0:02:30]} 9. b3 {[%emt 0:01:30]} cxb3 {[%emt 0:09:30]} 10. axb3 {[%emt 0:00:30]} Bb7 {[%emt 0:00:00]} 11. d4 {[%emt 0:01:30]} Be7 {[%emt 0:01:00]} 12. Nbd2 {[%emt 0:02:30]} Qc7 {[%emt 0:03:30]} 13. Bb2 {[%emt 0:02:30]} e5 {[%emt 0:03:30]} 14. c4 {[%emt 0:06:30]} O-O {[%emt 0:02:30]} 15. Nf1 {[%emt 0:01:30]} Rfe8 {[%emt 0:09:30]} 16. Ng3 {[%emt 0:03:30]} Bf8 {[%emt 0:02:30]} 17. Qd2 {[%emt 0:01:30]} g6 {[%emt 0:05:30]} 18. h4 {[%emt 0:10:30]} Rac8 {[%emt 0:05:30]} 19. Rac1 {[%emt 0:01:30]} Qd8 {[%emt 0:00:30]} 20. Rcd1 {[%emt 0:03:30]} Ng4 {[%emt 0:05:30]} 21. Qe2 {[%emt 0:02:30]} exd4 {[%emt 0:00:30]} 22. Bxd4 {[%emt 0:04:30]} Nde5 {[%emt 0:08:30]} 23. Nxe5 {[%emt 0:02:30]} Nxe5 {[%emt 0:00:30]} 24. h5 {[%emt 0:01:30]} Nc6 {[%emt 0:06:30]} 25. Ba1 {[%emt 0:03:30]} Qg5 {[%emt 0:04:30]} 26. Qf3 {[%emt 0:05:30]} Ne5 {[%emt 0:03:30]} 27. Qc3 {[%emt 0:00:00]} f6 {[%emt 0:00:30]} 28. hxg6 {[%emt 0:04:00]} hxg6 {[%emt 0:00:30]} 29. Qd2 {[%emt 0:00:30]} Qxd2 {[%emt 0:00:30]} 30. Rxd2 {[%emt 0:00:30]} d5 {[%emt 0:01:30]} 31. exd5 {[%emt 0:04:30]} Bb4 {[%emt 0:00:30]} 32. Rxe5 {[%emt 0:01:30]} Rxe5 {[%emt 0:00:30]} 33. Bxe5 {[%emt 0:00:30]} Bxd2 {[%emt 0:05:30]} 34. Bxf6 {[%emt 0:00:30]} Bxd5 {[%emt 0:04:32]} 35. Bxg6 {[%emt 0:03:30]} Bf7 {[%emt 0:04:28]} 36. Bf5 {[%emt 0:06:30]} Rc6 {[%emt 0:00:42]} 37. Ne4 {[%emt 0:01:30]} b5 {[%emt 0:05:20]} 38. g4 {[%emt 0:03:30]} bxc4 {[%emt 0:02:49]} 39. bxc4 {[%emt 0:00:00]} Be6 {[%emt 0:01:40]} 40. Bxe6+ {[%emt 0:13:42]} Rxe6 {[%emt 0:00:04]} 41. f3 {[%emt 0:00:04]} Be3+ {[%emt 0:00:08]} 42. Kf1 {[%emt 0:00:05]} a5 {[%emt 0:00:42]} 43. Ke2 {[%emt 0:01:07]} Bh6 {[%emt 0:00:16]} 44. Kd3 {[%emt 0:01:38]} a4 {[%emt 0:01:18]} 45. g5 {[%emt 0:01:57]} Bf8 {[%emt 0:01:45]} 46. Kc2 {[%emt 0:01:30]} a3 {[%emt 0:01:09]} 47. Kb3 {[%emt 0:00:11]} Rb6+ {[%emt 0:00:40]} 48. Ka2 {[%emt 0:00:02]} Rc6 {[%emt 0:00:26]} 49. c5 {[%emt 0:00:14]} Bxc5 {[%emt 0:00:23]} 50. Nxc5 {[%emt 0:00:07]} Rxc5 {[%emt 0:00:03]} 51. Kxa3 {[%emt 0:00:04]} Rf5 {[%emt 0:00:02]} 1/2-1/2